bitfinex/quotes_ETHUSD_20250411
["timestamp","ask_amount","ask_price","bid_price","bid_amount"]
[1744394522651,6.3417,1576.9,1576.4,12.687]
[1744394522855,6.34199,1576.8,1576.4,6.3435]
[1744394523171,6.34155,1576.9,1576.2,7.13595838]
[1744394523327,6.34262,1576.7,1576.3,6.34394]
[1744394523523,6.976135,1576.8,1576.2,0.79160838]
[1744394523722,6.3416,1576.9,1576.2,0.79160838]
[1744394523723,6.34179,1576.9,1576.5,0.8301]
[1744394523924,0.8004,1577.0,1576.5,0.09534756]
[1744394524237,6.34197,1576.8,1576.5,6.43847756]
[1744394525056,6.34197,1576.8,1576.5,0.09534756]
[1744394525366,6.3417,1576.9,1576.5,6.43844756]
[1744394525529,7.69003,1576.9,1576.5,6.43835756]
[1744394526055,7.69003,1576.9,1576.5,12.78139756]
[1744394526255,7.69003,1576.9,1576.5,6.43835756]
[1744394526453,14.03181,1576.9,1576.5,6.43835756]
[1744394526652,6.34236,1576.7,1576.5,0.09534756]
[1744394526872,0.83175636,1576.8,1576.5,0.09534756]
[1744394527074,6.34249,1576.7,1576.5,0.09534756]
[1744394527677,23.3349134,1576.6,1576.5,7.56e-06]
[1744394527974,6.34589,1575.9,1575.4,0.7502]
[1744394528267,7.13873,1576.2,1575.5,0.55]
[1744394528451,6.34373,1576.4,1575.7,14.00244]
[1744394528649,6.34373,1576.4,1575.8,10.746054]
[1744394528856,17.88127,1576.7,1576.0,3.0]
[1744394528857,6.3429,1576.6,1576.0,3.0]
[1744394529043,14.88134,1576.7,1576.1,0.8264]
[1744394529246,14.88134,1576.7,1576.1,7.17103]
[1744394529247,6.34244,1576.7,1576.1,7.17103]
[1744394529445,8.5622,1577.0,1576.1,0.8264]
[1744394529646,6.34262,1576.7,1576.1,7.17102]
[1744394529845,6.34285,1576.6,1576.1,0.8264]
[1744394530148,12.68681,1576.5,1576.1,0.8264]
[1744394530346,6.34251,1576.7,1576.2,6.34435]
[1744394530545,6.34251,1576.7,1576.1,7.171]
[1744394530546,6.34277,1576.6,1576.1,7.171]
[1744394530767,6.34277,1576.6,1576.2,0.7171]
[1744394531133,6.34251,1576.7,1576.2,7.06144]
[1744394531329,6.34203,1576.8,1576.3,0.06343135]
[1744394531535,6.34091,1577.1,1576.5,9.34297]
[1744394531784,6.34091,1577.1,1576.5,15.68597]
[1744394531785,12.68198,1577.1,1576.5,15.68597]
[1744394532079,7.14655,1577.4,1576.8,0.8298]
[1744394532080,12.68093,1577.2,1576.8,0.8298]
[1744394532242,6.34085,1577.1,1576.8,0.8298]
[1744394532583,6.34043,1577.2,1576.8,0.8298]
[1744394532882,6.34088,1577.1,1576.8,0.8298]
[1744394533038,6.34059,1577.2,1576.8,0.8298]
[1744394533378,12.68125,1577.2,1576.8,0.8298]
[1744394533549,6.3409,1577.1,1576.8,0.8298]
[1744394533874,6.34035,1577.2,1576.8,1.21278]
[1744394534072,12.68012,1577.3,1576.8,7.55444]
[1744394534277,6.33959,1577.4,1576.9,0.61340483]
[1744394534571,6.3405,1577.2,1577.0,3.0]
[1744394534775,6.34117,1577.0,1576.8,8.95178]
[1744394534934,6.34155,1576.9,1576.8,8.5688]
[1744394535136,6.34236,1576.7,1576.5,0.8246]
[1744394535380,12.68417,1576.8,1576.5,0.8246]
[1744394535536,12.68347,1576.9,1576.5,7.16749]
[1744394535736,6.34211,1576.8,1576.5,7.16749]
[1744394535953,6.34211,1576.8,1576.5,2.4757]
[1744394536247,6.34238,1576.7,1576.5,2.4757]
[1744394536452,6.34238,1576.7,1576.5,0.8246]
[1744394536850,6.34205,1576.8,1576.5,0.8246]
[1744394537178,12.68429,1576.8,1576.5,0.8246]
[1744394537473,12.68431,1576.8,1576.5,0.8246]
[1744394537635,6.34244,1576.7,1576.5,0.8246]
[1744394537840,6.3437,1576.4,1576.1,0.7543]
[1744394538177,6.34282,1576.6,1576.1,0.7543]
[1744394538332,6.34417,1576.3,1576.1,0.7543]
[1744394538536,6.34433,1576.3,1576.1,0.7543]
[1744394538950,6.34522,1576.0,1575.9,0.8175]
[1744394539184,12.68907,1576.2,1575.9,0.8175]
[1744394539395,6.34573,1575.9,1575.7,0.7597]
[1744394539955,6.34518,1576.0,1575.7,0.82315577]
[1744394540290,6.34446,1576.2,1575.7,3.7597]
[1744394540589,6.34332,1576.5,1576.2,6.3442]
[1744394540810,6.34286,1576.6,1576.3,0.8208]
[1744394541096,12.686,1576.6,1576.3,0.8208]
[1744394541255,12.68581,1576.6,1576.3,0.8208]
[1744394543254,6.34356,1576.4,1576.1,3.0]
[1744394543457,6.34356,1576.4,1576.0,7.66325]
[1744394543652,6.34402,1576.3,1576.0,7.11325]
[1744394543890,6.34477,1576.1,1576.0,0.7682]
[1744394544199,6.34477,1576.1,1575.8,21.56973]
[1744394544394,6.34477,1576.1,1575.8,15.2238]
[1744394544991,6.34441,1576.2,1575.9,7.86785]
[1744394545165,6.34441,1576.2,1575.9,1.52238]
[1744394545548,6.34457,1576.2,1575.9,6.34552]
[1744394546297,12.68919,1576.2,1575.9,6.34552]
[1744394546506,6.34457,1576.2,1575.9,12.69088]
[1744394546681,12.68917,1576.2,1575.8,21.56975]
[1744394547085,6.34478,1576.1,1575.8,7.49086]
[1744394547407,6.34481,1576.1,1575.7,9.34623]
[1744394547719,6.34518,1576.0,1575.7,9.40968517]
[1744394547918,6.34481,1576.1,1575.7,9.40968517]
[1744394547919,6.34444,1576.2,1575.9,6.34535]
[1744394548593,6.34397,1576.3,1575.7,9.34629]
[1744394548901,6.34497,1576.1,1575.8,6.34594]
[1744394549107,6.34496,1576.1,1575.8,6.34583]
[1744394549424,12.69074,1576.0,1575.7,9.34628]
[1744394549621,6.34532,1576.0,1575.7,3.0]
[1744394549787,6.34565,1575.9,1575.7,3.0]
[1744394549988,6.34532,1576.0,1575.7,9.40982562]
[1744394550187,6.34532,1576.0,1575.7,17.41265918]
[1744394550391,6.34489,1576.1,1575.8,6.34593]
[1744394550583,12.6899,1576.1,1575.8,6.34593]
[1744394551783,6.34489,1576.1,1575.8,6.34593]
[1744394552420,12.68738,1576.4,1576.0,7.10714]
[1744394552632,6.34367,1576.4,1576.1,6.34474]
[1744394552808,6.34287,1576.6,1576.3,6.34376]
[1744394553324,12.6858,1576.6,1576.3,6.34376]
[1744394553527,6.34287,1576.6,1576.3,12.68761]
[1744394553726,6.34279,1576.6,1576.4,1.268761]
[1744394554026,6.34246,1576.7,1576.4,1.268761]
[1744394554181,12.6852,1576.7,1576.4,6.34356]
[1744394554385,6.34246,1576.7,1576.4,6.34356]
[1744394554694,6.34309,1576.6,1576.2,6.34425]
[1744394554895,6.34375,1576.4,1576.1,6.34474]
[1744394555095,13.22417,1576.5,1576.0,1.472814]
[1744394555295,6.345,1576.1,1575.8,0.87337443]
[1744394555622,12.69001,1576.1,1575.8,0.87337443]
[1744394555825,6.345,1576.1,1575.8,7.21921443]
[1744394556128,6.07,1576.3,1575.8,7.21924443]
[1744394556292,12.68996,1576.1,1575.8,7.21921443]
[1744394556627,6.34554,1576.0,1575.8,0.04527443]
[1744394556988,6.34482,1576.1,1575.8,0.04527443]
[1744394557183,6.95146,1576.2,1575.8,6.39123443]
[1744394557486,12.68901,1576.2,1575.8,0.04527443]
[1744394557681,6.34482,1576.1,1575.8,12.73712443]
[1744394557883,6.34482,1576.1,1575.8,12.73699443]
[1744394558130,6.34482,1576.1,1575.8,6.39112443]
[1744394558299,6.34482,1576.1,1575.8,6.39111443]
[1744394558500,7.14692,1576.1,1575.8,6.39111443]
[1744394559016,6.34449,1576.2,1575.9,6.34554]
[1744394559215,6.34479,1576.1,1575.8,7.66485287]
[1744394559421,12.68976,1576.1,1575.8,7.66485287]
[1744394560428,6.34479,1576.1,1575.8,7.66485287]
[1744394561133,6.34479,1576.1,1575.8,14.01071287]
[1744394561352,12.41397,1576.3,1575.9,1.40107129]
[1744394561634,6.07,1576.3,1576.1,12.68934]
[1744394561795,6.07,1576.3,1576.1,6.34467]
[1744394561995,12.41397,1576.3,1576.0,0.7957]
[1744394562188,6.34443,1576.2,1576.0,0.7957]
[1744394562599,6.34443,1576.2,1575.9,6.34546]
[1744394562807,6.34443,1576.2,1575.9,7.06694344]
[1744394563006,6.34443,1576.2,1575.9,13.41239344]
[1744394563529,6.34443,1576.2,1575.9,7.06693344]
[1744394563731,6.34443,1576.2,1575.9,13.41239344]
[1744394564040,6.34443,1576.2,1575.9,13.41238344]
[1744394564203,6.07,1576.3,1575.9,0.72148344]
[1744394564530,6.3436,1576.4,1576.1,6.34455]
[1744394564735,6.3436,1576.4,1576.1,12.68911]
[1744394565093,12.68738,1576.4,1576.1,6.34455]
[1744394565398,12.68738,1576.4,1576.1,12.68921]
[1744394565399,6.3436,1576.4,1576.1,12.68921]
[1744394566301,20.14764,1576.7,1576.1,12.68921]
[1744394566302,7.09709,1576.7,1576.3,6.3436]
[1744394566510,7.09709,1576.7,1576.1,6.34477]
[1744394566511,6.34361,1576.4,1576.1,12.68921]
[1744394566803,6.34361,1576.4,1576.1,6.34457]
[1744394566804,12.68731,1576.4,1576.1,6.34457]
[1744394567119,6.34361,1576.4,1576.1,12.68922]
[1744394567729,0.7521,1576.3,1576.1,6.34457]
[1744394567919,0.7521,1576.3,1576.1,12.68924]
[1744394568230,0.7521,1576.3,1576.1,12.68923]
[1744394569548,12.6868,1576.5,1576.2,6.34437]
[1744394569928,6.3437,1576.4,1576.1,14.258153]
[1744394570545,6.3437,1576.4,1576.1,14.258143]
[1744394570708,6.34326,1576.5,1576.2,6.34435]
[1744394570913,6.34316,1576.5,1576.0,3.0]
[1744394571138,12.68866,1576.3,1576.0,9.34516]
[1744394571445,6.34316,1576.5,1575.9,14.08018]
[1744394571446,13.49333,1576.2,1575.9,14.08055]
[1744394571630,7.729,1576.6,1576.1,6.34456]
[1744394571631,7.14767,1576.5,1576.1,6.34456]
[1744394571810,6.34357,1576.4,1576.1,6.34468]
[1744394572143,13.48939,1576.7,1576.3,6.34374]
[1744394572516,6.34281,1576.6,1576.2,12.6885]
[1744394572725,12.68594,1576.6,1576.3,1.26885]
[1744394572924,12.68594,1576.6,1576.2,12.68851]
[1744394573336,6.34281,1576.6,1576.3,6.34394]
[1744394573538,0.8044,1576.7,1576.1,11.5243]
[1744394573847,6.34247,1576.7,1576.5,0.7575]
[1744394574150,6.34247,1576.7,1576.4,6.34336]
[1744394574949,12.68416,1576.8,1576.4,6.34336]
[1744394575112,6.34303,1576.6,1576.3,0.7575]
[1744394575320,7.14585,1576.8,1576.2,6.34435]
[1744394575321,12.68654,1576.5,1576.2,6.34435]
[1744394575515,6.34251,1576.7,1576.4,6.34325]
[1744394575854,6.34167,1576.9,1576.5,13.50206]
[1744394576015,13.21447,1577.2,1576.6,5.36937626]
[1744394576214,12.68114,1577.2,1576.9,6.34129]
[1744394576527,6.3405,1577.2,1576.9,12.68273]
[1744394577054,6.3405,1577.2,1576.9,12.68272]
[1744394577442,0.7994,1577.1,1576.8,6.34184]
[1744394577634,12.68261,1577.0,1576.7,6.34226]
[1744394577822,7.49504887,1577.1,1576.8,6.34191]
[1744394578068,0.35479887,1577.1,1577.0,6.34115]
[1744394578245,0.35479887,1577.1,1576.9,6.34141]
[1744394578554,0.35479887,1577.1,1576.8,0.8125]
[1744394578555,6.34115,1577.0,1576.8,0.8125]
[1744394578727,6.34043,1577.2,1576.9,6.34155]
[1744394579049,6.34075,1577.1,1576.8,13.49617]
[1744394579253,12.68095,1577.2,1576.9,6.34143]
[1744394579418,6.3405,1577.2,1576.9,6.34143]
[1744394579614,6.3405,1577.2,1576.9,13.88020063]
[1744394579849,6.3405,1577.2,1576.9,7.53876063]
[1744394580078,6.3405,1577.2,1576.8,11.97373626]
[1744394580221,6.34118,1577.0,1576.7,6.34222]
[1744394580552,12.68253,1577.0,1576.6,11.99189626]
[1744394580758,12.68253,1577.0,1576.6,18.33461626]
[1744394581258,6.34156,1576.9,1576.6,5.64917626]
[1744394581431,6.34156,1576.9,1576.6,7.17255]
[1744394581612,6.34156,1576.9,1576.6,7.889685]
[1744394582045,6.34156,1576.9,1576.6,7.9531049]
[1744394582246,12.68261,1577.0,1576.6,14.232435]
[1744394582522,6.34127,1577.0,1576.7,6.34232]
[1744394582719,5.52423184,1577.4,1577.1,6.34059]
[1744394583060,5.52423184,1577.4,1576.9,0.7866]
[1744394583061,6.34048,1577.2,1576.9,7.12801]
[1744394583422,6.34089,1577.1,1576.8,20.41069]
[1744394583613,6.34089,1577.1,1576.8,20.41068]
[1744394583846,12.68094,1577.2,1576.9,6.34154]
[1744394584045,6.34101,1577.1,1576.8,6.34183]
[1744394584290,6.34101,1577.1,1576.9,0.04527443]
[1744394584479,6.34038,1577.2,1576.9,0.04527443]
[1744394584682,6.34038,1577.2,1576.9,6.38675443]
[1744394584877,13.949103,1577.2,1576.9,0.04527443]
[1744394585075,6.34,1577.3,1577.0,6.34108]
[1744394585263,18.20350184,1577.4,1577.1,6.34044]
[1744394585486,6.33997,1577.3,1577.0,7.13408]
[1744394585680,11.86380184,1577.4,1577.0,7.13403]
[1744394585880,19.46875202,1577.4,1577.1,6.3406]
[1744394586081,5.52423184,1577.4,1577.2,6.34021]
[1744394586455,5.52423184,1577.4,1577.3,6.33994]
[1744394587390,5.52423184,1577.4,1577.3,10.14984]
[1744394587615,5.52423184,1577.4,1577.3,10.69984]
[1744394587890,5.52423184,1577.4,1577.3,10.14984]
[1744394588104,5.52423184,1577.4,1577.3,7.14984]
[1744394588392,11.86382184,1577.4,1577.1,7.14177]
[1744394588582,11.86382184,1577.4,1577.1,13.48238]
[1744394588787,5.52423184,1577.4,1577.2,6.34028]
[1744394589297,5.52423184,1577.4,1577.3,9.33994]
[1744394589496,5.52423184,1577.4,1577.3,10.72184]
[1744394589791,5.52423184,1577.4,1577.3,23.26621626]
[1744394589968,5.52423184,1577.4,1577.3,22.71621626]
[1744394590353,5.52423184,1577.4,1577.3,7.725]
[1744394590596,12.41632502,1577.4,1577.1,7.09174]
[1744394590753,0.8117,1577.3,1576.9,0.04527443]
[1744394590952,7.15182,1577.3,1576.9,6.38676443]
[1744394591184,6.34039,1577.2,1576.9,12.72810443]
[1744394591410,11.86384184,1577.4,1577.1,6.34063]
[1744394591616,6.34006,1577.3,1577.0,7.17162]
[1744394591773,6.34006,1577.3,1577.0,0.8306]
[1744394592196,11.86388184,1577.4,1577.0,0.8306]
[1744394592517,11.86388184,1577.4,1577.1,6.34071]
[1744394592870,13.05027002,1577.4,1577.0,7.17162]
[1744394593093,5.52423184,1577.4,1577.0,7.17162]
[1744394593278,5.52423184,1577.4,1577.1,6.34068]
[1744394593491,11.86393184,1577.4,1577.1,12.6813]
[1744394593688,11.86393184,1577.4,1577.1,6.34062]
[1744394593894,18.20385184,1577.4,1577.0,13.5127]
[1744394594093,6.34009,1577.3,1577.0,13.51263]
[1744394594293,6.3397,1577.4,1577.1,6.34066]
[1744394594682,6.34101,1577.1,1576.9,0.04527443]
[1744394594887,7.10125,1577.0,1576.9,0.04527443]
[1744394595199,16.17125,1577.0,1576.9,0.04527443]
[1744394595381,16.52488238,1577.0,1576.9,0.04527443]
[1744394595768,13.52488238,1577.0,1576.9,0.04527443]
[1744394596008,13.17125,1577.0,1576.9,0.04527443]
[1744394597710,16.17125,1577.0,1576.9,0.04527443]
[1744394597920,16.52507396,1577.0,1576.9,0.04527443]
[1744394598793,6.34284,1576.6,1576.3,6.34379]
[1744394598974,5.68317312,1576.7,1576.3,12.68764]
[1744394599369,5.68317312,1576.7,1576.3,6.34379]
[1744394599565,6.3429,1576.6,1576.3,6.34379]
[1744394599809,6.3429,1576.6,1576.3,7.689837]
[1744394600608,12.02592312,1576.7,1576.3,14.033687]
[1744394600911,12.02592312,1576.7,1576.3,14.033657]
[1744394601109,6.34203,1576.8,1576.4,6.34355]
[1744394601293,13.17134,1577.0,1576.7,6.34231]
[1744394601494,6.34171,1576.9,1576.5,11.95515626]
[1744394601700,6.34171,1576.9,1576.5,7.13573]
[1744394601868,6.34171,1576.9,1576.6,6.34276]
[1744394602275,7.13889,1577.2,1576.5,6.08358006]
[1744394602573,6.34058,1577.2,1576.9,6.34142]
[1744394602905,6.34041,1577.2,1577.0,0.634142]
[1744394603089,6.34087,1577.1,1576.8,7.13034]
[1744394603612,12.68195,1577.1,1576.7,12.68448]
[1744394603769,6.34116,1577.0,1576.7,6.34223]
[1744394604109,6.34087,1577.1,1576.8,6.34189]
[1744394604310,6.34087,1577.1,1576.9,0.634189]
[1744394604474,6.34086,1577.1,1576.9,0.634189]
[1744394604679,6.34086,1577.1,1576.7,12.68452]
[1744394604902,12.68107,1577.2,1576.8,12.68372]
[1744394605578,6.34002,1577.3,1577.0,7.10684]
[1744394605881,6.34002,1577.3,1577.0,0.7658]
[1744394606081,12.68022,1577.3,1577.0,0.7658]
[1744394606415,1.347852,1577.3,1576.7,7.1384]
[1744394606613,1.347852,1577.3,1576.3,57.920987]
[1744394606614,6.34257,1576.7,1576.3,57.920987]
[1744394606914,12.6853,1576.7,1576.3,14.829827]
[1744394607121,0.7763,1576.8,1576.4,0.06343057]
[1744394607420,6.34195,1576.8,1576.3,2.142147]
[1744394607634,6.34308,1576.6,1576.3,0.7961]
[1744394607798,6.34308,1576.6,1576.3,7.14004]
[1744394607987,6.34308,1576.6,1576.3,13.48386]
[1744394608189,10.12085,1576.9,1576.5,6.34304]
[1744394608388,6.34208,1576.8,1576.5,6.34304]
[1744394608601,12.6842,1576.8,1576.5,0.68803345]
[1744394609012,6.34208,1576.8,1576.5,13.37415345]
[1744394609213,6.34208,1576.8,1576.5,13.37410345]
[1744394609601,12.68421,1576.8,1576.5,7.03104345]
[1744394609831,6.34208,1576.8,1576.5,7.03103345]
[1744394610047,7.12082,1576.9,1576.6,0.70310334]
[1744394610048,0.7792,1576.9,1576.6,0.70310334]
[1744394610216,7.17008,1577.2,1576.8,6.34185]
[1744394610731,0.8296,1577.2,1576.8,6.34185]
[1744394610890,6.34108,1577.1,1576.8,12.68366]
[1744394611224,12.68199,1577.1,1576.8,6.34183]
[1744394611425,12.68199,1577.1,1576.8,1.345978]
[1744394611631,6.34176,1576.9,1576.6,6.34268]
[1744394611792,6.34119,1577.0,1576.7,6.34215]
[1744394611990,6.34119,1577.0,1576.7,12.68438]
[1744394612642,6.34119,1577.0,1576.7,12.6844]
[1744394612826,6.34119,1577.0,1576.7,13.95284]
[1744394613134,6.3412,1577.0,1576.7,1.26844]
[1744394613295,6.3412,1577.0,1576.7,13.95288]
[1744394613491,6.3412,1577.0,1576.7,7.61064]
[1744394613800,6.32926856,1577.0,1576.7,13.95287]
[1744394614026,12.68178,1577.1,1576.8,1.395287]
[1744394614238,6.07,1577.4,1577.0,6.34099]
[1744394614545,6.34062,1577.2,1576.9,0.784]
[1744394614749,6.34013,1577.3,1576.9,7.12543]
[1744394614910,6.34094,1577.1,1576.7,7.12624]
[1744394615248,0.8122,1577.1,1576.7,0.712624]
[1744394615420,0.8122,1577.1,1576.5,0.784]
[1744394615421,6.34218,1576.8,1576.5,0.784]
[1744394615815,6.34204,1576.8,1576.5,7.12686]
[1744394616147,6.34126,1577.0,1576.5,0.84742697]
[1744394616313,6.34126,1577.0,1576.6,6.34246]
[1744394616512,6.34126,1577.0,1576.5,3.84742268]
[1744394616712,13.22312,1577.1,1576.7,6.34195]
[1744394616909,13.22312,1577.1,1576.7,12.6842]
[1744394617145,12.68266,1577.0,1576.6,12.68536]
[1744394617453,6.34117,1577.0,1576.7,6.34235]
[1744394617621,12.68253,1577.0,1576.7,6.34235]
[1744394617821,7.11314,1577.3,1576.8,0.87592296]
[1744394618027,0.7731,1577.3,1577.0,6.34112]
[1744394618224,12.40915,1577.5,1576.9,6.34155]
[1744394618428,6.07,1577.5,1577.2,6.34016]
[1744394618647,0.35454148,1577.4,1577.2,6.34016]
[1744394619213,0.35454148,1577.4,1577.3,6.40334233]
[1744394619423,0.35454148,1577.4,1577.3,6.33994]
[1744394619653,6.33955,1577.4,1577.1,14.06062]
[1744394619817,6.33955,1577.4,1577.0,7.13366]
[1744394620023,6.34054,1577.2,1576.8,10.13435]
[1744394620212,6.34089,1577.1,1576.8,10.13435]
[1744394620419,12.68185,1577.1,1576.8,7.13435]
[1744394620816,6.34089,1577.1,1576.8,7.13435]
[1744394621055,6.34089,1577.1,1576.8,6.34165]
[1744394621257,6.34045,1577.2,1576.8,7.7368893]
[1744394621475,7.1212,1577.3,1576.9,6.3413]
[1744394621776,6.07,1577.6,1577.3,6.33989]
[1744394621935,6.33879,1577.6,1577.3,6.33982]
[1744394622132,6.33879,1577.6,1577.2,6.34024]
[1744394622374,6.33897,1577.6,1577.2,6.34021]
[1744394622561,6.33897,1577.6,1577.3,6.3398]
[1744394622762,0.7588,1577.7,1577.5,6.33887]
[1744394622975,6.33819,1577.8,1577.5,6.33902]
[1744394623178,20.39435,1577.9,1577.5,12.67804]
[1744394623339,6.33764,1577.9,1577.6,6.33873]
[1744394623670,6.33764,1577.9,1577.6,6.33862]
[1744394623874,12.67546,1577.9,1577.5,12.67805]
[1744394624178,0.7973,1578.0,1577.5,1.267805]
[1744394624179,7.13452,1578.0,1577.5,1.267805]
[1744394624351,7.13452,1578.0,1577.7,6.33812]
[1744394624732,6.33776,1577.9,1577.5,6.33908]
[1744394624932,6.33799,1577.8,1577.5,6.33908]
[1744394625137,12.6761,1577.8,1577.5,6.339]
[1744394625371,6.33764,1577.9,1577.5,6.339]
[1744394625680,7.684851,1577.9,1577.5,6.339]
[1744394625981,6.33799,1577.8,1577.5,6.339]
[1744394626285,5.52423184,1578.1,1577.4,6.88945]
[1744394626452,5.52423184,1578.1,1578.0,6.33713]
[1744394626847,5.52423184,1578.1,1577.9,7.10254]
[1744394627053,5.52423184,1578.1,1578.0,6.33713]
[1744394627780,6.33594,1578.3,1578.0,14.018227]
[1744394627985,7.14637,1578.4,1578.1,6.33668]
[1744394628154,6.38557,1578.4,1578.1,6.33657]
[1744394628342,6.38557,1578.4,1578.0,6.33702]
[1744394628547,6.38561,1578.4,1578.0,6.33702]
[1744394628784,6.38561,1578.4,1578.0,12.674]
[1744394628943,6.38561,1578.4,1578.0,14.08128381]
[1744394629139,6.38561,1578.4,1578.0,7.6809]
[1744394629386,6.33606,1578.3,1578.0,6.33698]
[1744394629544,6.33676,1578.1,1577.7,15.43024]
[1744394629885,6.33676,1578.1,1577.7,21.21848]
[1744394630074,12.67381,1578.1,1577.7,21.21848]
[1744394630381,6.33676,1578.1,1577.8,6.3379]
[1744394630554,7.604079,1578.1,1577.8,12.6758]
[1744394630753,7.604079,1578.1,1577.8,6.3379]
[1744394631182,0.81,1578.0,1577.5,7.16306]
[1744394631393,6.33797,1577.8,1577.5,7.16306]
[1744394631551,7.14726,1578.0,1577.7,6.33815]
[1744394631756,8.06002736,1578.0,1577.7,6.33815]
[1744394632166,12.40682,1578.1,1577.8,6.33791]
[1744394632344,6.07,1578.1,1577.9,6.3374]
[1744394632710,6.33674,1578.1,1577.8,6.33781]
[1744394632979,6.33674,1578.1,1577.8,6.33791]
[1744394633179,6.07,1578.3,1577.9,12.6748]
[1744394633180,6.33598,1578.3,1577.9,12.6748]
[1744394633385,0.05,1578.4,1577.9,0.633791]
[1744394633587,0.05,1578.4,1578.2,7.11019]
[1744394634099,0.05,1578.4,1578.3,6.33593]
[1744394634299,0.05,1578.4,1578.3,6.39928063]
[1744394634597,0.05,1578.4,1578.2,13.4464]
[1744394634767,0.05,1578.4,1578.2,15.27297763]
[1744394635281,0.05,1578.4,1578.2,8.93676763]
[1744394635478,0.05,1578.4,1578.3,6.88593]
[1744394635669,0.05,1578.4,1578.3,6.33593]
[1744394635860,0.05,1578.4,1578.2,16.64676763]
[1744394636189,0.05,1578.4,1578.3,0.78421494]
[1744394636396,0.05,1578.4,1578.3,7.67014494]
[1744394638702,0.05,1578.4,1578.3,16.2446212]
[1744394639209,0.05,1578.4,1578.3,11.42524494]
[1744394641605,6.33191,1579.3,1578.9,13.49861]
[1744394641778,7.16493,1579.4,1579.0,7.682981]
[1744394641976,0.05,1579.4,1579.2,6.33209]
[1744394642179,0.05,1579.4,1579.3,6.33191]
[1744394642411,0.05,1579.4,1579.3,7.35973012]
[1744394642614,0.05,1579.4,1579.3,8.80949213]
[1744394643103,0.05,1579.4,1579.3,1.44976201]
[1744394643308,0.05,1579.4,1579.3,14.76459889]
[1744394643601,0.05,1579.4,1579.3,9.88191]
[1744394643786,0.05,1579.4,1579.2,3.8058]
[1744394643995,0.05,1579.4,1579.2,10.13779]
[1744394644287,0.05,1579.4,1579.3,6.33191]
[1744394644480,0.05,1579.4,1579.2,7.13779]
[1744394644676,0.05,1579.4,1579.2,0.8058]
[1744394644995,0.05,1579.4,1579.2,7.20132462]
[1744394645170,0.05,1579.4,1579.3,6.88191]
[1744394645371,0.05,1579.4,1579.3,6.33191]
[1744394645704,0.05,1579.4,1579.3,9.33191]
[1744394646307,0.05,1579.4,1579.3,3.0]
[1744394646611,0.05,1579.4,1579.2,13.94256151]
[1744394646965,0.05,1579.4,1579.2,7.61042151]
[1744394647165,0.05,1579.4,1579.2,10.61246529]
[1744394647398,0.05,1579.4,1579.2,16.94463529]
[1744394647903,0.05,1579.4,1579.1,16.07737626]
[1744394647904,0.8283,1579.4,1579.1,20.3732]
[1744394648207,0.8283,1579.4,1579.1,14.04052]
[1744394648361,0.05,1579.4,1579.3,11.96698626]
[1744394648562,0.05,1579.4,1579.3,11.98385433]
[1744394649180,0.05,1579.4,1579.3,8.16815433]
[1744394649806,0.05,1579.4,1579.3,8.71815433]
[1744394650572,0.05,1579.4,1579.3,11.71815433]
[1744394651100,0.05,1579.4,1579.3,8.71815433]
[1744394652106,0.8151,1580.3,1579.8,0.83]
[1744394652263,0.8151,1580.3,1580.1,6.32854]
[1744394652472,0.8151,1580.3,1580.0,6.32892]
[1744394652765,7.14317,1580.3,1579.9,7.35785642]
[1744394653214,7.14312,1580.3,1580.0,6.32908]
[1744394653418,6.3776,1580.4,1580.1,6.961598]
[1744394653570,12.70536,1580.4,1580.1,0.632908]
[1744394653771,12.65622,1580.3,1580.1,0.632908]
[1744394653971,6.32833,1580.2,1579.9,7.35790642]
[1744394654214,12.65627,1580.3,1579.9,13.68725642]
[1744394654709,12.65612,1580.3,1579.9,13.68726642]
[1744394655021,6.32834,1580.2,1579.9,13.68722642]
[1744394655321,6.32872,1580.1,1579.9,0.47851642]
[1744394655612,6.32937,1580.0,1579.6,7.09226]
[1744394655777,6.32951,1579.9,1579.6,9.35362363]
[1744394655983,12.65922,1579.9,1579.6,9.35362363]
[1744394656210,6.32951,1579.9,1579.6,9.83636337]
[1744394656508,6.33007,1579.8,1579.5,17.03301]
[1744394656807,6.33045,1579.7,1579.5,7.702]
[1744394657118,6.33071,1579.6,1579.3,14.49987433]
[1744394657278,13.42333,1579.8,1579.4,12.66275]
[1744394657478,6.33037,1579.7,1579.4,6.33126]
[1744394657673,12.66085,1579.7,1579.4,8.26313106]
[1744394657876,6.07,1580.1,1579.4,8.26313106]
[1744394657877,7.12153,1579.9,1579.5,6.88098]
[1744394658101,13.45131,1579.9,1579.5,6.88098]
[1744394658307,12.66003,1579.8,1579.4,6.3313]
[1744394658609,7.12159,1579.9,1579.5,6.39423469]
[1744394658807,13.45128,1579.9,1579.5,6.97035347]
[1744394659024,13.45128,1579.9,1579.5,13.36462375]
[1744394659231,13.45128,1579.9,1579.5,13.30134347]
[1744394659592,7.12159,1579.9,1579.6,6.3306]
[1744394659800,13.4513,1579.9,1579.5,7.03372374]
[1744394660127,6.33016,1579.8,1579.4,9.88125]
[1744394660296,6.33044,1579.7,1579.4,9.33125]
[1744394660498,6.33044,1579.7,1579.4,15.66263]
[1744394660699,0.7919,1579.9,1579.5,0.55]
[1744394660990,13.45126,1579.9,1579.6,6.3305]
[1744394661602,7.12153,1579.9,1579.6,12.66107]
[1744394661907,7.12143,1579.9,1579.6,7.651607]
[1744394662106,13.45112,1579.9,1579.6,6.3305]
[1744394662291,7.12143,1579.9,1579.6,12.66106]